[Event "Live Chess"]
[Site "Chess.com"]
[Date "2011.02.01"]
[Round "-"]
[White "meowmixy"]
[Black "hipposcottimus"]
[Result "1-0"]
[CurrentPosition "5rk1/2p3pp/prPp1qb1/3Np3/4Qp2/1P3N1P/P1P2PP1/R4RK1 w - -"]
[Timezone "UTC"]
[ECO "C48"]
[ECOUrl "https://www.chess.com/openings/Four-Knights-Game-Spanish-Variation-4...d6-5.d4"]
[UTCDate "2011.02.01"]
[UTCTime "03:19:33"]
[WhiteElo "1787"]
[BlackElo "1663"]
[TimeControl "60"]
[Termination "meowmixy won by resignation"]
[StartTime "03:19:33"]
[EndDate "2011.02.01"]
[EndTime "03:20:40"]
[Link "https://www.chess.com/game/live/93508424"]

1. e4 {[%clk 0:01:00]} 1... e5 {[%clk 0:01:00]} 2. Nf3 {[%clk 0:00:59.4]} 2... Nc6 {[%clk 0:00:59.6]} 3. Nc3 {[%clk 0:00:59]} 3... Nf6 {[%clk 0:00:59.3]} 4. Bb5 {[%clk 0:00:58.5]} 4... d6 {[%clk 0:00:54.7]} 5. d4 {[%clk 0:00:58.1]} 5... Bg4 {[%clk 0:00:52.1]} 6. d5 {[%clk 0:00:57.4]} 6... a6 {[%clk 0:00:49]} 7. Bxc6+ {[%clk 0:00:55.3]} 7... bxc6 {[%clk 0:00:48.3]} 8. dxc6 {[%clk 0:00:54.9]} 8... Be7 {[%clk 0:00:48]} 9. Qd3 {[%clk 0:00:51.8]} 9... O-O {[%clk 0:00:47.7]} 10. Bg5 {[%clk 0:00:50.4]} 10... Nxe4 {[%clk 0:00:40.2]} 11. Bxe7 {[%clk 0:00:47.3]} 11... Qxe7 {[%clk 0:00:39.4]} 12. Qxe4 {[%clk 0:00:46.3]} 12... f5 {[%clk 0:00:38.2]} 13. Qe3 {[%clk 0:00:43]} 13... Rab8 {[%clk 0:00:37.6]} 14. b3 {[%clk 0:00:41.4]} 14... f4 {[%clk 0:00:37.1]} 15. Qe4 {[%clk 0:00:39.9]} 15... Rb6 {[%clk 0:00:34.7]} 16. O-O {[%clk 0:00:38]} 16... Qf6 {[%clk 0:00:30.1]} 17. h3 {[%clk 0:00:37.6]} 17... Bh5 {[%clk 0:00:27.4]} 18. Nd5 {[%clk 0:00:36]} 18... Bg6 {[%clk 0:00:26]} 1-0

[Event "Live Chess"]
[Site "Chess.com"]
[Date "2011.02.01"]
[Round "-"]
[White "paleoliberal"]
[Black "hipposcottimus"]
[Result "0-1"]
[CurrentPosition "8/pp3rkp/2p3p1/8/4P1Q1/6P1/P4qKP/8 w - -"]
[Timezone "UTC"]
[ECO "C65"]
[ECOUrl "https://www.chess.com/openings/Ruy-Lopez-Opening-Berlin-Defense-4.Bxc6-dxc6"]
[UTCDate "2011.02.01"]
[UTCTime "03:16:45"]
[WhiteElo "1504"]
[BlackElo "1669"]
[TimeControl "60"]
[Termination "hipposcottimus won on time"]
[StartTime "03:16:45"]
[EndDate "2011.02.01"]
[EndTime "03:18:58"]
[Link "https://www.chess.com/game/live/93507814"]

1. e4 {[%clk 0:01:00]} 1... e5 {[%clk 0:01:00]} 2. Nf3 {[%clk 0:00:59.7]} 2... Nc6 {[%clk 0:00:59.6]} 3. Bb5 {[%clk 0:00:58]} 3... Nf6 {[%clk 0:00:58.8]} 4. Bxc6 {[%clk 0:00:57.4]} 4... dxc6 {[%clk 0:00:58.5]} 5. Nc3 {[%clk 0:00:56.7]} 5... Bd6 {[%clk 0:00:56.4]} 6. d4 {[%clk 0:00:56.6]} 6... Bg4 {[%clk 0:00:55.4]} 7. dxe5 {[%clk 0:00:55.4]} 7... Bxf3 {[%clk 0:00:55.1]} 8. Qxf3 {[%clk 0:00:53.6]} 8... Bxe5 {[%clk 0:00:54.4]} 9. Bg5 {[%clk 0:00:50.5]} 9... O-O {[%clk 0:00:53.2]} 10. O-O {[%clk 0:00:48.5]} 10... Qd6 {[%clk 0:00:49]} 11. g3 {[%clk 0:00:46.2]} 11... Nd7 {[%clk 0:00:44.2]} 12. Ne2 {[%clk 0:00:43.6]} 12... f6 {[%clk 0:00:43.4]} 13. Bf4 {[%clk 0:00:42.2]} 13... Rae8 {[%clk 0:00:42.3]} 14. Bxe5 {[%clk 0:00:41]} 14... Nxe5 {[%clk 0:00:42]} 15. Qf5 {[%clk 0:00:38.5]} 15... g6 {[%clk 0:00:40]} 16. Qh3 {[%clk 0:00:35.3]} 16... f5 {[%clk 0:00:39.3]} 17. Nf4 {[%clk 0:00:33.8]} 17... fxe4 {[%clk 0:00:37.4]} 18. Rfe1 {[%clk 0:00:30.9]} 18... Qd4 {[%clk 0:00:32.7]} 19. Rad1 {[%clk 0:00:27]} 19... Qxb2 {[%clk 0:00:30.7]} 20. Nh5 {[%clk 0:00:22.2]} 20... Nf3+ {[%clk 0:00:29.2]} 21. Kh1 {[%clk 0:00:16.1]} 21... Nxe1 {[%clk 0:00:28.9]} 22. Rxe1 {[%clk 0:00:14.6]} 22... Qxc2 {[%clk 0:00:28.6]} 23. Nf6+ {[%clk 0:00:12.8]} 23... Rxf6 {[%clk 0:00:27.3]} 24. Qd7 {[%clk 0:00:11.4]} 24... Rff8 {[%clk 0:00:25.9]} 25. f3 {[%clk 0:00:07.7]} 25... Qa4 {[%clk 0:00:16.4]} 26. fxe4 {[%clk 0:00:06.7]} 26... Rd8 {[%clk 0:00:13]} 27. Qxc7 {[%clk 0:00:05.4]} 27... Rd1 {[%clk 0:00:11.9]} 28. Rxd1 {[%clk 0:00:04.1]} 28... Qxd1+ {[%clk 0:00:11.6]} 29. Kg2 {[%clk 0:00:03]} 29... Qf3+ {[%clk 0:00:09.2]} 30. Kh3 {[%clk 0:00:02.9]} 30... Qf6 {[%clk 0:00:07.6]} 31. Qd7 {[%clk 0:00:02.5]} 31... Rf7 {[%clk 0:00:05.9]} 32. Qg4 {[%clk 0:00:02.4]} 32... Kg7 {[%clk 0:00:04.7]} 33. Kg2 {[%clk 0:00:00.8]} 33... Qf2+ {[%clk 0:00:03.2]} 0-1

[Event "Live Chess"]
[Site "Chess.com"]
[Date "2011.02.01"]
[Round "-"]
[White "hipposcottimus"]
[Black "paleoliberal"]
[Result "1-0"]
[CurrentPosition "7r/1R6/3Qk1p1/4Bb2/7q/1PP5/2P2PPP/4R1K1 b - -"]
[Timezone "UTC"]
[ECO "C57"]
[ECOUrl "https://www.chess.com/openings/Italian-Game-Knight-Attack"]
[UTCDate "2011.02.01"]
[UTCTime "03:15:07"]
[WhiteElo "1664"]
[BlackElo "1509"]
[TimeControl "60"]
[Termination "hipposcottimus won by checkmate"]
[StartTime "03:15:07"]
[EndDate "2011.02.01"]
[EndTime "03:16:40"]
[Link "https://www.chess.com/game/live/93507434"]

1. e4 {[%clk 0:01:00]} 1... e5 {[%clk 0:01:00]} 2. Nf3 {[%clk 0:00:58.3]} 2... Nc6 {[%clk 0:00:59.9]} 3. Bc4 {[%clk 0:00:57.8]} 3... Nf6 {[%clk 0:00:59.8]} 4. Ng5 {[%clk 0:00:57]} 4... Qe7 {[%clk 0:00:53.2]} 5. Bxf7+ {[%clk 0:00:53.4]} 5... Kd8 {[%clk 0:00:51.9]} 6. Bb3 {[%clk 0:00:53]} 6... Nd4 {[%clk 0:00:50.1]} 7. Nf7+ {[%clk 0:00:52.3]} 7... Ke8 {[%clk 0:00:43.2]} 8. Nxh8 {[%clk 0:00:50.6]} 8... Nxb3 {[%clk 0:00:40.4]} 9. axb3 {[%clk 0:00:49.6]} 9... d6 {[%clk 0:00:37.5]} 10. O-O {[%clk 0:00:48.4]} 10... g6 {[%clk 0:00:36.4]} 11. d4 {[%clk 0:00:47.8]} 11... Bg7 {[%clk 0:00:35.3]} 12. dxe5 {[%clk 0:00:46.2]} 12... Nxe4 {[%clk 0:00:31.8]} 13. Nxg6 {[%clk 0:00:42.6]} 13... hxg6 {[%clk 0:00:30.5]} 14. Re1 {[%clk 0:00:40.5]} 14... Bf5 {[%clk 0:00:29]} 15. Nc3 {[%clk 0:00:38.7]} 15... Nxc3 {[%clk 0:00:26.5]} 16. bxc3 {[%clk 0:00:38.4]} 16... Kd7 {[%clk 0:00:24.9]} 17. Bf4 {[%clk 0:00:36.2]} 17... Rh8 {[%clk 0:00:21.5]} 18. exd6 {[%clk 0:00:35.5]} 18... cxd6 {[%clk 0:00:17.8]} 19. Rxa7 {[%clk 0:00:32.8]} 19... Be5 {[%clk 0:00:15.7]} 20. Rxb7+ {[%clk 0:00:31.9]} 20... Ke6 {[%clk 0:00:11.6]} 21. Bxe5 {[%clk 0:00:31]} 21... Qh4 {[%clk 0:00:09.4]} 22. Qxd6# {[%clk 0:00:28.6]} 1-0

[Event "Live Chess"]
[Site "Chess.com"]
[Date "2011.02.01"]
[Round "-"]
[White "paleoliberal"]
[Black "hipposcottimus"]
[Result "0-1"]
[CurrentPosition "4r3/2pkqppp/2pp4/Q7/P7/7P/1PP5/1K5R w - -"]
[Timezone "UTC"]
[ECO "C22"]
[ECOUrl "https://www.chess.com/openings/Center-Game-Accepted-Normal-Variation"]
[UTCDate "2011.02.01"]
[UTCTime "03:12:57"]
[WhiteElo "1514"]
[BlackElo "1659"]
[TimeControl "60"]
[Termination "hipposcottimus won on time"]
[StartTime "03:12:57"]
[EndDate "2011.02.01"]
[EndTime "03:14:54"]
[Link "https://www.chess.com/game/live/93506942"]

1. e4 {[%clk 0:01:00]} 1... e5 {[%clk 0:01:00]} 2. d4 {[%clk 0:00:58.6]} 2... exd4 {[%clk 0:00:58.5]} 3. Qxd4 {[%clk 0:00:57.7]} 3... Nc6 {[%clk 0:00:58.3]} 4. Qd2 {[%clk 0:00:55.2]} 4... d6 {[%clk 0:00:58]} 5. Nc3 {[%clk 0:00:54.3]} 5... Nf6 {[%clk 0:00:57.6]} 6. Nf3 {[%clk 0:00:53]} 6... Bg4 {[%clk 0:00:57]} 7. h3 {[%clk 0:00:51.1]} 7... Bxf3 {[%clk 0:00:56.4]} 8. gxf3 {[%clk 0:00:50.6]} 8... Be7 {[%clk 0:00:56]} 9. Qe2 {[%clk 0:00:49.4]} 9... Qd7 {[%clk 0:00:55.7]} 10. Be3 {[%clk 0:00:48.5]} 10... O-O-O {[%clk 0:00:55.4]} 11. O-O-O {[%clk 0:00:47.8]} 11... Ne5 {[%clk 0:00:53.4]} 12. f4 {[%clk 0:00:46.1]} 12... Ng6 {[%clk 0:00:50]} 13. e5 {[%clk 0:00:45.3]} 13... Nh5 {[%clk 0:00:48.6]} 14. f5 {[%clk 0:00:43.2]} 14... Nxe5 {[%clk 0:00:46.1]} 15. Nd5 {[%clk 0:00:39.8]} 15... Nf6 {[%clk 0:00:44.1]} 16. Bxa7 {[%clk 0:00:38.1]} 16... Nxd5 {[%clk 0:00:41.8]} 17. Rxd5 {[%clk 0:00:35.6]} 17... Qxf5 {[%clk 0:00:39]} 18. f4 {[%clk 0:00:28.8]} 18... Qxf4+ {[%clk 0:00:37.1]} 19. Be3 {[%clk 0:00:22.5]} 19... Qf5 {[%clk 0:00:33.8]} 20. Ra5 {[%clk 0:00:21.1]} 20... Bg5 {[%clk 0:00:32.1]} 21. Bxg5 {[%clk 0:00:16.6]} 21... Qxg5+ {[%clk 0:00:30.2]} 22. Kb1 {[%clk 0:00:15.9]} 22... Qe7 {[%clk 0:00:28.7]} 23. Qb5 {[%clk 0:00:13.7]} 23... Nc6 {[%clk 0:00:25.9]} 24. Ra8+ {[%clk 0:00:11.6]} 24... Kd7 {[%clk 0:00:25.1]} 25. Bg2 {[%clk 0:00:10.6]} 25... Rxa8 {[%clk 0:00:21.6]} 26. a4 {[%clk 0:00:05.1]} 26... Ra5 {[%clk 0:00:19.1]} 27. Bxc6+ {[%clk 0:00:01.4]} 27... bxc6 {[%clk 0:00:18.5]} 28. Qxa5 {[%clk 0:00:00.8]} 28... Re8 {[%clk 0:00:17]} 0-1

[Event "Live Chess"]
[Site "Chess.com"]
[Date "2011.02.01"]
[Round "-"]
[White "hipposcottimus"]
[Black "paleoliberal"]
[Result "1-0"]
[CurrentPosition "5Rk1/pp2Q1pp/8/3p4/4p1b1/8/P5PP/N5K1 b - -"]
[Timezone "UTC"]
[ECO "B02"]
[ECOUrl "https://www.chess.com/openings/Alekhines-Defense-Two-Pawns-Attack-3...Nb6"]
[UTCDate "2011.02.01"]
[UTCTime "03:11:01"]
[WhiteElo "1654"]
[BlackElo "1519"]
[TimeControl "60"]
[Termination "hipposcottimus won by checkmate"]
[StartTime "03:11:01"]
[EndDate "2011.02.01"]
[EndTime "03:12:44"]
[Link "https://www.chess.com/game/live/93506505"]

1. e4 {[%clk 0:01:00]} 1... Nf6 {[%clk 0:01:00]} 2. e5 {[%clk 0:00:59.4]} 2... Nd5 {[%clk 0:00:58.7]} 3. c4 {[%clk 0:00:57.5]} 3... Nb6 {[%clk 0:00:57.3]} 4. Nc3 {[%clk 0:00:57.2]} 4... c5 {[%clk 0:00:56.5]} 5. d3 {[%clk 0:00:56.2]} 5... e6 {[%clk 0:00:54.8]} 6. f4 {[%clk 0:00:55.8]} 6... Nc6 {[%clk 0:00:53.2]} 7. Nf3 {[%clk 0:00:55.2]} 7... Nd4 {[%clk 0:00:52.2]} 8. Nxd4 {[%clk 0:00:53.6]} 8... cxd4 {[%clk 0:00:51.5]} 9. Ne2 {[%clk 0:00:53.3]} 9... Bb4+ {[%clk 0:00:47.4]} 10. Bd2 {[%clk 0:00:51.9]} 10... Bc5 {[%clk 0:00:46.7]} 11. Ba5 {[%clk 0:00:49.9]} 11... O-O {[%clk 0:00:41.6]} 12. b4 {[%clk 0:00:48.1]} 12... Bd6 {[%clk 0:00:38.8]} 13. Nxd4 {[%clk 0:00:47.3]} 13... Qc7 {[%clk 0:00:32]} 14. c5 {[%clk 0:00:46.4]} 14... Bxc5 {[%clk 0:00:30.3]} 15. bxc5 {[%clk 0:00:46.1]} 15... Qxc5 {[%clk 0:00:29.5]} 16. Nb3 {[%clk 0:00:44.1]} 16... Nd5 {[%clk 0:00:26.6]} 17. Bd2 {[%clk 0:00:43.5]} 17... Nxf4 {[%clk 0:00:21.9]} 18. Qf3 {[%clk 0:00:42.3]} 18... Nxd3+ {[%clk 0:00:19.1]} 19. Bxd3 {[%clk 0:00:40.7]} 19... Qxe5+ {[%clk 0:00:17.6]} 20. Be3 {[%clk 0:00:39.8]} 20... Qxa1+ {[%clk 0:00:16.2]} 21. Nxa1 {[%clk 0:00:37.6]} 21... d5 {[%clk 0:00:15.2]} 22. O-O {[%clk 0:00:36.7]} 22... f5 {[%clk 0:00:14]} 23. Bc5 {[%clk 0:00:36.2]} 23... e5 {[%clk 0:00:12.4]} 24. Bxf8 {[%clk 0:00:34]} 24... e4 {[%clk 0:00:11.7]} 25. Bxe4 {[%clk 0:00:32.2]} 25... fxe4 {[%clk 0:00:10]} 26. Qa3 {[%clk 0:00:30.6]} 26... Bg4 {[%clk 0:00:05.2]} 27. Qe7 {[%clk 0:00:29.7]} 27... Rxf8 {[%clk 0:00:02.6]} 28. Rxf8# {[%clk 0:00:28.8]} 1-0

[Event "Live Chess"]
[Site "Chess.com"]
[Date "2011.02.01"]
[Round "-"]
[White "paleoliberal"]
[Black "hipposcottimus"]
[Result "0-1"]
[CurrentPosition "6k1/ppp1n1p1/3b3p/4N3/3P4/2P5/1r4KP/8 w - -"]
[Timezone "UTC"]
[ECO "A06"]
[ECOUrl "https://www.chess.com/openings/Reti-Opening-Tennison-Gambit"]
[UTCDate "2011.02.01"]
[UTCTime "03:09:15"]
[WhiteElo "1524"]
[BlackElo "1649"]
[TimeControl "60"]
[Termination "hipposcottimus won by resignation"]
[StartTime "03:09:15"]
[EndDate "2011.02.01"]
[EndTime "03:10:49"]
[Link "https://www.chess.com/game/live/93506059"]

1. e4 {[%clk 0:01:00]} 1... d5 {[%clk 0:01:00]} 2. Nf3 {[%clk 0:00:59.9]} 2... dxe4 {[%clk 0:00:59.4]} 3. Ng5 {[%clk 0:00:57.7]} 3... Nf6 {[%clk 0:00:55.5]} 4. f3 {[%clk 0:00:55]} 4... h6 {[%clk 0:00:54.3]} 5. Nxe4 {[%clk 0:00:53]} 5... Nxe4 {[%clk 0:00:53.1]} 6. fxe4 {[%clk 0:00:52.4]} 6... e5 {[%clk 0:00:51.7]} 7. d4 {[%clk 0:00:51.4]} 7... Bb4+ {[%clk 0:00:51.3]} 8. c3 {[%clk 0:00:49]} 8... Bd6 {[%clk 0:00:49.6]} 9. Be3 {[%clk 0:00:45.8]} 9... Nc6 {[%clk 0:00:46.4]} 10. Be2 {[%clk 0:00:45.1]} 10... Be6 {[%clk 0:00:43.1]} 11. O-O {[%clk 0:00:44.1]} 11... O-O {[%clk 0:00:42.7]} 12. Bh5 {[%clk 0:00:42.1]} 12... f5 {[%clk 0:00:41.8]} 13. exf5 {[%clk 0:00:39.8]} 13... Bxf5 {[%clk 0:00:41.5]} 14. Rxf5 {[%clk 0:00:37.8]} 14... Rxf5 {[%clk 0:00:39.9]} 15. Qd3 {[%clk 0:00:36.7]} 15... Rxh5 {[%clk 0:00:38.7]} 16. g4 {[%clk 0:00:33.4]} 16... Rg5 {[%clk 0:00:36.8]} 17. Bxg5 {[%clk 0:00:31.1]} 17... Qxg5 {[%clk 0:00:36.5]} 18. Nd2 {[%clk 0:00:26.3]} 18... Rf8 {[%clk 0:00:36.1]} 19. Kh1 {[%clk 0:00:24.8]} 19... Qxg4 {[%clk 0:00:35.3]} 20. Nf3 {[%clk 0:00:22.4]} 20... Qf4 {[%clk 0:00:33.9]} 21. Rf1 {[%clk 0:00:19]} 21... Ne7 {[%clk 0:00:31.3]} 22. Nxe5 {[%clk 0:00:18]} 22... Qxf1+ {[%clk 0:00:30.3]} 23. Qxf1 {[%clk 0:00:16.3]} 23... Rxf1+ {[%clk 0:00:30]} 24. Kg2 {[%clk 0:00:15.6]} 24... Ra1 {[%clk 0:00:28]} 25. Nd7 {[%clk 0:00:14.2]} 25... Rxa2 {[%clk 0:00:26.7]} 26. Ne5 {[%clk 0:00:13.4]} 26... Rxb2+ {[%clk 0:00:25.9]} 0-1

[Event "Live Chess"]
[Site "Chess.com"]
[Date "2011.02.01"]
[Round "-"]
[White "hipposcottimus"]
[Black "paleoliberal"]
[Result "1-0"]
[CurrentPosition "3R2k1/pp2R2p/6p1/2p5/2n5/5r2/PP5P/1K6 b - -"]
[Timezone "UTC"]
[ECO "B02"]
[ECOUrl "https://www.chess.com/openings/Alekhines-Defense-Two-Pawns-Attack-3...Nb6"]
[UTCDate "2011.02.01"]
[UTCTime "03:06:56"]
[WhiteElo "1644"]
[BlackElo "1529"]
[TimeControl "60"]
[Termination "hipposcottimus won on time"]
[StartTime "03:06:56"]
[EndDate "2011.02.01"]
[EndTime "03:08:57"]
[Link "https://www.chess.com/game/live/93505605"]

1. e4 {[%clk 0:01:00]} 1... Nf6 {[%clk 0:01:00]} 2. e5 {[%clk 0:00:59.7]} 2... Nd5 {[%clk 0:00:57.5]} 3. c4 {[%clk 0:00:59]} 3... Nb6 {[%clk 0:00:56.8]} 4. d3 {[%clk 0:00:57.8]} 4... c5 {[%clk 0:00:55.9]} 5. Nc3 {[%clk 0:00:57.2]} 5... d6 {[%clk 0:00:55.1]} 6. Bf4 {[%clk 0:00:56.6]} 6... dxe5 {[%clk 0:00:53.9]} 7. Bxe5 {[%clk 0:00:55.1]} 7... f6 {[%clk 0:00:53]} 8. Bg3 {[%clk 0:00:53.7]} 8... e5 {[%clk 0:00:52.1]} 9. f4 {[%clk 0:00:52.4]} 9... Bd6 {[%clk 0:00:51.6]} 10. fxe5 {[%clk 0:00:51.3]} 10... fxe5 {[%clk 0:00:50.2]} 11. Qf3 {[%clk 0:00:51]} 11... N8d7 {[%clk 0:00:41.1]} 12. Nge2 {[%clk 0:00:49.7]} 12... Nf6 {[%clk 0:00:39.9]} 13. Nc1 {[%clk 0:00:44.7]} 13... O-O {[%clk 0:00:38.7]} 14. Be2 {[%clk 0:00:41.2]} 14... Nh5 {[%clk 0:00:37.6]} 15. Qxh5 {[%clk 0:00:39.8]} 15... Be6 {[%clk 0:00:31.1]} 16. Bg4 {[%clk 0:00:38.9]} 16... Bxg4 {[%clk 0:00:29.2]} 17. Qxg4 {[%clk 0:00:37.8]} 17... e4 {[%clk 0:00:27]} 18. dxe4 {[%clk 0:00:36.3]} 18... Bxg3+ {[%clk 0:00:25.4]} 19. Qxg3 {[%clk 0:00:35.2]} 19... Qf6 {[%clk 0:00:24.2]} 20. N1e2 {[%clk 0:00:33.4]} 20... Nxc4 {[%clk 0:00:23.1]} 21. e5 {[%clk 0:00:28.1]} 21... Nxe5 {[%clk 0:00:20.6]} 22. Ne4 {[%clk 0:00:27.7]} 22... Qe6 {[%clk 0:00:16.9]} 23. N2c3 {[%clk 0:00:26.8]} 23... Qc4 {[%clk 0:00:13.8]} 24. O-O-O {[%clk 0:00:25.8]} 24... Qxe4 {[%clk 0:00:12.6]} 25. Nxe4 {[%clk 0:00:24.2]} 25... Rae8 {[%clk 0:00:10.3]} 26. Nd6 {[%clk 0:00:22.4]} 26... Re6 {[%clk 0:00:08.5]} 27. Ne4 {[%clk 0:00:20.9]} 27... Nc4 {[%clk 0:00:07.4]} 28. Kb1 {[%clk 0:00:19.5]} 28... Rxe4 {[%clk 0:00:06.4]} 29. Qf3 {[%clk 0:00:19]} 29... Rxf3 {[%clk 0:00:03.9]} 30. gxf3 {[%clk 0:00:17.5]} 30... Rf4 {[%clk 0:00:03]} 31. Rhe1 {[%clk 0:00:16.8]} 31... Rxf3 {[%clk 0:00:01.8]} 32. Re7 {[%clk 0:00:16.4]} 32... g6 {[%clk 0:00:00.4]} 33. Rd8+ {[%clk 0:00:15.5]} 1-0

[Event "Live Chess"]
[Site "Chess.com"]
[Date "2011.02.01"]
[Round "-"]
[White "paleoliberal"]
[Black "hipposcottimus"]
[Result "0-1"]
[CurrentPosition "2kr4/ppp3rR/8/2P5/5P2/5b2/PPn4P/7K w - -"]
[Timezone "UTC"]
[ECO "C57"]
[ECOUrl "https://www.chess.com/openings/Italian-Game-Knight-Attack-Normal-Variation"]
[UTCDate "2011.02.01"]
[UTCTime "03:04:52"]
[WhiteElo "1535"]
[BlackElo "1638"]
[TimeControl "60"]
[Termination "hipposcottimus won by checkmate"]
[StartTime "03:04:52"]
[EndDate "2011.02.01"]
[EndTime "03:06:46"]
[Link "https://www.chess.com/game/live/93505068"]

1. e4 {[%clk 0:01:00]} 1... e5 {[%clk 0:01:00]} 2. Nf3 {[%clk 0:00:59.9]} 2... Nc6 {[%clk 0:00:59.6]} 3. Bc4 {[%clk 0:00:59.3]} 3... Nf6 {[%clk 0:00:59.3]} 4. Ng5 {[%clk 0:00:58.2]} 4... d5 {[%clk 0:00:59]} 5. Bxd5 {[%clk 0:00:55.7]} 5... Nxd5 {[%clk 0:00:57]} 6. Nxf7 {[%clk 0:00:53.5]} 6... Kxf7 {[%clk 0:00:54.3]} 7. exd5 {[%clk 0:00:52.8]} 7... Qxd5 {[%clk 0:00:50.4]} 8. Qh5+ {[%clk 0:00:51.3]} 8... Ke7 {[%clk 0:00:49.7]} 9. Nc3 {[%clk 0:00:50.2]} 9... Qf7 {[%clk 0:00:47.4]} 10. Qh4+ {[%clk 0:00:43.2]} 10... Qf6 {[%clk 0:00:45.3]} 11. Nd5+ {[%clk 0:00:40.1]} 11... Ke6 {[%clk 0:00:44.3]} 12. Nxf6 {[%clk 0:00:38.7]} 12... gxf6 {[%clk 0:00:42.8]} 13. Qc4+ {[%clk 0:00:37.4]} 13... Ke7 {[%clk 0:00:40.6]} 14. O-O {[%clk 0:00:36.4]} 14... Be6 {[%clk 0:00:40.3]} 15. Qc5+ {[%clk 0:00:34.2]} 15... Kd7 {[%clk 0:00:37.5]} 16. d4 {[%clk 0:00:33.5]} 16... Bxc5 {[%clk 0:00:35.7]} 17. dxc5 {[%clk 0:00:32]} 17... Rad8 {[%clk 0:00:35.4]} 18. Be3 {[%clk 0:00:30]} 18... Kc8 {[%clk 0:00:35]} 19. Rfd1 {[%clk 0:00:29.1]} 19... f5 {[%clk 0:00:33.7]} 20. Re1 {[%clk 0:00:26.4]} 20... f4 {[%clk 0:00:32.2]} 21. f3 {[%clk 0:00:25.6]} 21... fxe3 {[%clk 0:00:30.6]} 22. Rxe3 {[%clk 0:00:25.4]} 22... Bd5 {[%clk 0:00:28.8]} 23. f4 {[%clk 0:00:23.9]} 23... exf4 {[%clk 0:00:27]} 24. Re5 {[%clk 0:00:22.9]} 24... Rhf8 {[%clk 0:00:26.4]} 25. Rh5 {[%clk 0:00:20.6]} 25... Nd4 {[%clk 0:00:25.9]} 26. Rxh7 {[%clk 0:00:19.7]} 26... Nxc2 {[%clk 0:00:24.1]} 27. Rf1 {[%clk 0:00:18.2]} 27... Rfe8 {[%clk 0:00:23]} 28. g3 {[%clk 0:00:17.1]} 28... Re2 {[%clk 0:00:22]} 29. gxf4 {[%clk 0:00:16.1]} 29... Rg2+ {[%clk 0:00:21]} 30. Kh1 {[%clk 0:00:11.9]} 30... Rg7+ {[%clk 0:00:20.7]} 31. Rf3 {[%clk 0:00:02]} 31... Bxf3# {[%clk 0:00:20.4]} 0-1

[Event "Live Chess"]
[Site "Chess.com"]
[Date "2011.02.01"]
[Round "-"]
[White "hipposcottimus"]
[Black "paleoliberal"]
[Result "0-1"]
[CurrentPosition "8/ppN5/8/8/5R1R/3k4/P5K1/8 w - -"]
[Timezone "UTC"]
[ECO "B02"]
[ECOUrl "https://www.chess.com/openings/Alekhines-Defense-Two-Pawns-Attack-3...Nb6-4.d4"]
[UTCDate "2011.02.01"]
[UTCTime "03:02:10"]
[WhiteElo "1632"]
[BlackElo "1541"]
[TimeControl "60"]
[Termination "paleoliberal won on time"]
[StartTime "03:02:10"]
[EndDate "2011.02.01"]
[EndTime "03:04:31"]
[Link "https://www.chess.com/game/live/93504485"]

1. e4 {[%clk 0:01:00]} 1... Nf6 {[%clk 0:01:00]} 2. e5 {[%clk 0:00:58]} 2... Nd5 {[%clk 0:00:59.2]} 3. c4 {[%clk 0:00:56.4]} 3... Nb6 {[%clk 0:00:59.1]} 4. d4 {[%clk 0:00:53.4]} 4... Nc6 {[%clk 0:00:59]} 5. d5 {[%clk 0:00:51.7]} 5... Na5 {[%clk 0:00:55.5]} 6. Bd2 {[%clk 0:00:49.2]} 6... Naxc4 {[%clk 0:00:54.5]} 7. Nc3 {[%clk 0:00:48]} 7... Nxe5 {[%clk 0:00:52.9]} 8. Bb5 {[%clk 0:00:43.9]} 8... Nxd5 {[%clk 0:00:51.4]} 9. Nxd5 {[%clk 0:00:42.6]} 9... e6 {[%clk 0:00:50.5]} 10. Ne3 {[%clk 0:00:42.4]} 10... Bc5 {[%clk 0:00:48.5]} 11. Be2 {[%clk 0:00:42.1]} 11... O-O {[%clk 0:00:47]} 12. Nf3 {[%clk 0:00:40.8]} 12... Nxf3+ {[%clk 0:00:45.4]} 13. Bxf3 {[%clk 0:00:38.5]} 13... d6 {[%clk 0:00:45.3]} 14. O-O {[%clk 0:00:35.8]} 14... e5 {[%clk 0:00:42.8]} 15. b4 {[%clk 0:00:33.6]} 15... Qg5 {[%clk 0:00:41.1]} 16. bxc5 {[%clk 0:00:31.7]} 16... Bh3 {[%clk 0:00:40.2]} 17. Nd5 {[%clk 0:00:27.9]} 17... f5 {[%clk 0:00:38.1]} 18. Nxc7 {[%clk 0:00:26.5]} 18... e4 {[%clk 0:00:37.1]} 19. Bxg5 {[%clk 0:00:24.6]} 19... exf3 {[%clk 0:00:34.2]} 20. Qxf3 {[%clk 0:00:23.9]} 20... Bg4 {[%clk 0:00:31.1]} 21. Qf4 {[%clk 0:00:22]} 21... Rae8 {[%clk 0:00:28.6]} 22. cxd6 {[%clk 0:00:21.4]} 22... Re4 {[%clk 0:00:27.4]} 23. d7 {[%clk 0:00:20.5]} 23... Rxf4 {[%clk 0:00:25.2]} 24. f3 {[%clk 0:00:19.9]} 24... Rxf3 {[%clk 0:00:22.8]} 25. gxf3 {[%clk 0:00:17.8]} 25... Bxf3 {[%clk 0:00:21.8]} 26. Rfd1 {[%clk 0:00:16.1]} 26... Rd8 {[%clk 0:00:20.8]} 27. Bxd8 {[%clk 0:00:14]} 27... Bc6 {[%clk 0:00:18]} 28. Rac1 {[%clk 0:00:09.6]} 28... Bxd7 {[%clk 0:00:16.8]} 29. Rxd7 {[%clk 0:00:08.4]} 29... h6 {[%clk 0:00:15.1]} 30. Bh4 {[%clk 0:00:08.1]} 30... Kh7 {[%clk 0:00:14.1]} 31. Bg3 {[%clk 0:00:07.8]} 31... f4 {[%clk 0:00:11.7]} 32. Rc5 {[%clk 0:00:07.4]} 32... fxg3 {[%clk 0:00:10.2]} 33. hxg3 {[%clk 0:00:07.1]} 33... h5 {[%clk 0:00:07.7]} 34. Re5 {[%clk 0:00:06.8]} 34... Kg6 {[%clk 0:00:06.8]} 35. Ree7 {[%clk 0:00:06.3]} 35... Kg5 {[%clk 0:00:05.5]} 36. Rxg7+ {[%clk 0:00:06]} 36... Kf5 {[%clk 0:00:04]} 37. Rd5+ {[%clk 0:00:05.2]} 37... Ke4 {[%clk 0:00:03.1]} 38. Rgg5 {[%clk 0:00:04.2]} 38... Kf3 {[%clk 0:00:03]} 39. Rxh5 {[%clk 0:00:03.6]} 39... Ke2 {[%clk 0:00:02.9]} 40. Rh4 {[%clk 0:00:03]} 40... Kf3 {[%clk 0:00:02.1]} 41. Rdd4 {[%clk 0:00:02.7]} 41... Kxg3 {[%clk 0:00:01.1]} 42. Rdg4+ {[%clk 0:00:01.8]} 42... Kf3 {[%clk 0:00:00.6]} 43. Rf4+ {[%clk 0:00:01.5]} 43... Ke2 {[%clk 0:00:00.4]} 44. Kg2 {[%clk 0:00:00.9]} 44... Kd3 {[%clk 0:00:00.3]} 0-1